fUSD/lending_fUSD_20260606
["ID","MTS","AMOUNT","RATE_DAILY","PERIOD"]
[424271670,1780722641000,-2542.09694212,0.00011525,2]
[424271675,1780722641000,-350.0,0.0001173,2]
[424271645,1780722641000,-165.12182,0.00011099,2]
[424271662,1780722641000,-151.0,0.00011487,2]
[424271643,1780722641000,-165.12182,0.00011099,2]
[424271615,1780722641000,-8321.94464135,0.000109,2]
[424271634,1780722641000,-17168.14687264,0.00011099,2]
[424271674,1780722641000,-166.67,0.00011718,2]
[424271613,1780722641000,-3203.0,0.00010691,5]
[424271614,1780722641000,-3257.96,0.00010779,2]
[424271611,1780722641000,-2000.0,0.0001053,2]
[424271609,1780722641000,-342.14338402,0.00010474,2]
[424271610,1780722641000,-3257.96,0.00010529,2]
[424271616,1780722641000,-150.0,0.00010959,2]
[424271617,1780722641000,-492.03,0.00010989,2]
[424271626,1780722641000,-22665.64802291,0.00011099,2]
[424271619,1780722641000,-366.04809502,0.00011,2]
[424271622,1780722641000,-171.9,0.0001102,2]
[424271612,1780722641000,-166.66,0.0001062,2]
[424271625,1780722641000,-22665.64802291,0.00011099,2]
[424271620,1780722641000,-203.03,0.00011,2]
[424271632,1780722641000,-17168.14687264,0.00011099,2]
[424271621,1780722641000,-500.0,0.00011014,2]
[424271623,1780722641000,-3257.96,0.0001103,2]
[424271628,1780722641000,-22665.64802291,0.00011099,2]
[424271630,1780722641000,-22665.64802291,0.00011099,2]
[424271629,1780722641000,-22665.64802291,0.00011099,2]
[424271636,1780722641000,-17168.14687264,0.00011099,2]
[424271637,1780722641000,-17168.14687264,0.00011099,2]
[424271638,1780722641000,-17168.14687264,0.00011099,2]
[424271641,1780722641000,-151.0,0.00011099,2]
[424271631,1780722641000,-22665.64802291,0.00011099,2]
[424271640,1780722641000,-151.0,0.00011099,2]
[424271639,1780722641000,-17168.14687264,0.00011099,2]
[424271642,1780722641000,-151.0,0.00011099,2]
[424271633,1780722641000,-17168.14687264,0.00011099,2]
[424271635,1780722641000,-17168.14687264,0.00011099,2]
[424271627,1780722641000,-22665.64802291,0.00011099,2]
[424271676,1780722641000,-1548.0,0.0001174,2]
[424271618,1780722641000,-566.51,0.00010989,2]
[424271677,1780722641000,-200.0,0.00011773,2]
[424271713,1780722641000,-1000.0,0.00012187,2]
[424271712,1780722641000,-1000.0,0.00012187,2]
[424271720,1780722641000,-1000.0,0.00012187,2]
[424271721,1780722641000,-1000.0,0.00012187,2]
[424271718,1780722641000,-1000.0,0.00012187,2]
[424271722,1780722641000,-1000.0,0.00012187,2]
[424271716,1780722641000,-1000.0,0.00012187,2]
[424271715,1780722641000,-1000.0,0.00012187,2]
[424271714,1780722641000,-1000.0,0.00012187,2]
[424271717,1780722641000,-1000.0,0.00012187,2]
[424271725,1780722641000,-1000.0,0.00012187,2]
[424271723,1780722641000,-1000.0,0.00012187,2]
[424271726,1780722641000,-1000.0,0.00012187,2]
[424271724,1780722641000,-1000.0,0.00012187,2]
[424271719,1780722641000,-1000.0,0.00012187,2]
[424271729,1780722641000,-1000.0,0.00012187,2]
[424271728,1780722641000,-1000.0,0.00012187,2]
[424271732,1780722641000,-194.65205172,0.00012187,2]
[424271727,1780722641000,-1000.0,0.00012187,2]
[424271734,1780722641000,-1543.0,0.00012196,2]
[424271733,1780722641000,-1548.0,0.00012196,2]
[424271731,1780722641000,-1000.0,0.00012187,2]
[424271736,1780722641000,-160.93,0.00012329,2]
[424271735,1780722641000,-350.0,0.00012328,2]
[424271738,1780722641000,-264.69626257,0.00012329,2]
[424271737,1780722641000,-157.37,0.00012329,2]
[424271739,1780722641000,-264.69626257,0.00012329,2]
[424271741,1780722641000,-264.69626257,0.00012329,2]
[424271740,1780722641000,-264.69626257,0.00012329,2]
[424271669,1780722641000,-975.77,0.00011507,2]
[424271730,1780722641000,-1000.0,0.00012187,2]
[424271711,1780722641000,-1000.0,0.00012187,2]
[424271624,1780722641000,-22665.64802294,0.00011099,2]
[424271709,1780722641000,-1000.0,0.00012187,2]
[424271710,1780722641000,-1000.0,0.00012187,2]
[424271678,1780722641000,-166.66,0.0001182,2]
[424271681,1780722641000,-192.526183,0.00011943,2]
[424271679,1780722641000,-200.0,0.00011878,2]
[424271680,1780722641000,-1644.63690168,0.0001191,2]
[424271683,1780722641000,-200.0,0.00011983,2]
[424271682,1780722641000,-3716.01,0.00011975,2]
[424271694,1780722641000,-1548.0,0.00011994,2]
[424271692,1780722641000,-1548.0,0.00011994,2]
[424271691,1780722641000,-1548.0,0.00011994,2]
[424271684,1780722641000,-1548.0,0.00011994,2]
[424271686,1780722641000,-1548.0,0.00011994,2]
[424271688,1780722641000,-1548.0,0.00011994,2]
[424271689,1780722641000,-1548.0,0.00011994,2]
[424271685,1780722641000,-1548.0,0.00011994,2]
[424271693,1780722641000,-1548.0,0.00011994,2]
[424271690,1780722641000,-1548.0,0.00011994,2]
[424271707,1780722641000,-175.0,0.00012164,2]
[424271687,1780722641000,-1548.0,0.00011994,2]
[424271702,1780722641000,-2000.0,0.0001207,2]
[424271700,1780722641000,-2000.0,0.0001207,2]
[424271698,1780722641000,-1078.72,0.00012055,2]
[424271695,1780722641000,-1548.0,0.00011994,2]
[424271699,1780722641000,-2000.0,0.0001207,2]
[424271708,1780722641000,-1000.0,0.00012187,2]
[424271704,1780722641000,-2000.0,0.0001207,2]
[424271697,1780722641000,-1567.23345922,0.00011994,2]
[424271701,1780722641000,-2000.0,0.0001207,2]
[424271705,1780722641000,-200.0,0.00012089,2]
[424271706,1780722641000,-350.0,0.00012125,2]
[424271696,1780722641000,-1548.0,0.00011994,2]
[424271703,1780722641000,-2000.0,0.0001207,2]
[424271787,1780722642000,-638.25290804,0.00013698,2]
[424271789,1780722642000,-500.0,0.00013698,2]
[424271785,1780722642000,-500.0,0.00013698,2]
[424271790,1780722642000,-502.80068804,0.00013698,2]
[424271788,1780722642000,-500.0,0.00013698,2]
[424271778,1780722642000,-151.41923818,0.00013488,2]
[424271783,1780722642000,-154.55676498,0.00013555,2]
[424271784,1780722642000,-155.50929057,0.00013555,2]
[424271781,1780722642000,-150.0,0.00013488,2]
[424271780,1780722642000,-150.0,0.00013488,2]
[424271786,1780722642000,-201.61838733,0.00013698,2]
[424271782,1780722642000,-160.88134904,0.00013488,2]
[424271792,1780722642000,-500.0,0.00013698,2]
[424271807,1780722642000,-500.0,0.00013698,2]
[424271802,1780722642000,-500.0,0.00013698,2]
[424271779,1780722642000,-150.0,0.00013488,2]
[424271811,1780722642000,-500.0,0.00013698,2]
[424271809,1780722642000,-500.0,0.00013698,2]
[424271798,1780722642000,-500.0,0.00013698,2]
[424271801,1780722642000,-500.0,0.00013698,2]
[424271796,1780722642000,-500.0,0.00013698,2]
[424271803,1780722642000,-500.0,0.00013698,2]
[424271804,1780722642000,-500.0,0.00013698,2]
[424271800,1780722642000,-500.0,0.00013698,2]
[424271799,1780722642000,-500.0,0.00013698,2]
[424271797,1780722642000,-500.0,0.00013698,2]
[424271793,1780722642000,-500.0,0.00013698,2]
[424271805,1780722642000,-500.0,0.00013698,2]
[424271791,1780722642000,-500.0,0.00013698,2]
[424271794,1780722642000,-500.0,0.00013698,2]
[424271772,1780722642000,-350.0,0.00013054,2]
[424271758,1780722642000,-309.0,0.000128,2]
[424271774,1780722642000,-319.05846273,0.00013171,2]
[424271745,1780722642000,-3159.0,0.000124,5]
[424271744,1780722642000,-166.66,0.00012373,2]
[424271746,1780722642000,-2909.0,0.000124,5]
[424271747,1780722642000,-1602.0,0.00012411,2]
[424271749,1780722642000,-215.80795776,0.00012502,2]
[424271750,1780722642000,-169.65,0.0001251,2]
[424271748,1780722642000,-350.0,0.00012463,2]
[424271743,1780722642000,-166.67,0.00012329,2]
[424271742,1780722642000,-264.69626257,0.00012329,2]
[424271751,1780722642000,-169.65,0.0001251,2]
[424271752,1780722642000,-500.0,0.00012521,2]
[424271762,1780722642000,-1548.0,0.00012868,2]
[424271764,1780722642000,-151.0,0.00012868,2]
[424271754,1780722642000,-2000.0,0.00012636,2]
[424271763,1780722642000,-152.0,0.00012868,2]
[424271755,1780722642000,-350.0,0.00012649,2]
[424271753,1780722642000,-168.68,0.00012597,2]
[424271773,1780722642000,-168.68,0.00013164,2]
[424271768,1780722642000,-350.0,0.00012969,2]
[424271770,1780722642000,-350.0,0.00012978,2]
[424271775,1780722642000,-350.0,0.00013261,2]
[424271771,1780722642000,-32000.0,0.00013,2]
[424271776,1780722642000,-350.0,0.00013389,2]
[424271766,1780722642000,-166.67,0.0001294,2]
[424271769,1780722642000,-350.0,0.00012977,2]
[424271765,1780722642000,-151.0,0.00012868,2]
[424271756,1780722642000,-350.0,0.00012741,2]
[424271761,1780722642000,-887.0,0.000128,2]
[424271759,1780722642000,-1000.0,0.000128,2]
[424271808,1780722642000,-500.0,0.00013698,2]
[424271757,1780722642000,-1000.0,0.000128,3]
[424271767,1780722642000,-500.0,0.00012959,2]
[424271812,1780722642000,-500.0,0.00013698,2]
[424271760,1780722642000,-315.0,0.000128,2]
[424271813,1780722642000,-500.0,0.00013698,2]
[424271852,1780722642000,-500.0,0.00013698,2]
[424271862,1780722642000,-500.0,0.00013698,2]
[424271863,1780722642000,-500.0,0.00013698,2]
[424271864,1780722642000,-500.0,0.00013698,2]
[424271855,1780722642000,-500.0,0.00013698,2]
[424271851,1780722642000,-500.0,0.00013698,2]
[424271853,1780722642000,-500.0,0.00013698,2]
[424271854,1780722642000,-500.0,0.00013698,2]
[424271858,1780722642000,-500.0,0.00013698,2]
[424271859,1780722642000,-500.0,0.00013698,2]
[424271857,1780722642000,-500.0,0.00013698,2]
[424271860,1780722642000,-500.0,0.00013698,2]
[424271856,1780722642000,-500.0,0.00013698,2]
[424271861,1780722642000,-500.0,0.00013698,2]
[424271865,1780722642000,-500.0,0.00013698,2]
[424271869,1780722642000,-500.0,0.00013698,2]
[424271867,1780722642000,-500.0,0.00013698,2]
[424271816,1780722642000,-500.0,0.00013698,2]
[424271879,1780722642000,-500.0,0.00013698,2]
[424271880,1780722642000,-500.0,0.00013698,2]
[424271876,1780722642000,-500.0,0.00013698,2]
[424271871,1780722642000,-500.0,0.00013698,2]
[424271877,1780722642000,-500.0,0.00013698,2]
[424271850,1780722642000,-500.0,0.00013698,2]
[424271875,1780722642000,-500.0,0.00013698,2]
[424271868,1780722642000,-500.0,0.00013698,2]
[424271878,1780722642000,-500.0,0.00013698,2]
[424271866,1780722642000,-500.0,0.00013698,2]
[424271874,1780722642000,-500.0,0.00013698,2]
[424271872,1780722642000,-500.0,0.00013698,2]
[424271870,1780722642000,-500.0,0.00013698,2]
[424271873,1780722642000,-500.0,0.00013698,2]
[424271849,1780722642000,-500.0,0.00013698,2]
[424271777,1780722642000,-151.5407187,0.00013488,2]
[424271845,1780722642000,-500.0,0.00013698,2]
[424271835,1780722642000,-500.0,0.00013698,2]
[424271836,1780722642000,-500.0,0.00013698,2]
[424271832,1780722642000,-500.0,0.00013698,2]
[424271834,1780722642000,-500.0,0.00013698,2]
[424271833,1780722642000,-500.0,0.00013698,2]
[424271824,1780722642000,-500.0,0.00013698,2]
[424271823,1780722642000,-500.0,0.00013698,2]
[424271822,1780722642000,-500.0,0.00013698,2]
[424271818,1780722642000,-500.0,0.00013698,2]
[424271814,1780722642000,-500.0,0.00013698,2]
[424271820,1780722642000,-500.0,0.00013698,2]
[424271815,1780722642000,-500.0,0.00013698,2]
[424271846,1780722642000,-500.0,0.00013698,2]
[424271817,1780722642000,-500.0,0.00013698,2]
[424271821,1780722642000,-500.0,0.00013698,2]
[424271825,1780722642000,-500.0,0.00013698,2]
[424271819,1780722642000,-500.0,0.00013698,2]
[424271826,1780722642000,-500.0,0.00013698,2]
[424271847,1780722642000,-500.0,0.00013698,2]
[424271829,1780722642000,-500.0,0.00013698,2]
[424271848,1780722642000,-500.0,0.00013698,2]
[424271844,1780722642000,-500.0,0.00013698,2]
[424271840,1780722642000,-500.0,0.00013698,2]
[424271842,1780722642000,-500.0,0.00013698,2]
[424271843,1780722642000,-500.0,0.00013698,2]
[424271838,1780722642000,-500.0,0.00013698,2]
[424271841,1780722642000,-500.0,0.00013698,2]
[424271827,1780722642000,-500.0,0.00013698,2]
[424271831,1780722642000,-500.0,0.00013698,2]
[424271839,1780722642000,-500.0,0.00013698,2]
[424271828,1780722642000,-500.0,0.00013698,2]
[424271837,1780722642000,-500.0,0.00013698,2]
[424271830,1780722642000,-500.0,0.00013698,2]
[424271916,1780722643000,-1030.0,0.0001378,2]
[424271915,1780722643000,-500.0,0.00013753,2]
[424271911,1780722643000,-500.0,0.00013699,2]
[424271918,1780722643000,-1008.0,0.000138,4]
[424271912,1780722643000,-500.0,0.00013699,2]
[424271917,1780722643000,-1500.0,0.0001378,2]
[424271914,1780722643000,-168.68,0.00013742,2]
[424271913,1780722643000,-174.56387018,0.00013699,2]
[424271909,1780722643000,-632.53844444,0.00013699,2]
[424271919,1780722643000,-166.66,0.00013836,2]
[424271924,1780722643000,-166.66,0.00013973,2]
[424271921,1780722643000,-151.0,0.0001394,2]
[424271922,1780722643000,-153.23217184,0.0001394,2]
[424271923,1780722643000,-3137.72349983,0.00013951,2]
[424271927,1780722643000,-500.0,0.00014,2]
[424271932,1780722643000,-500.0,0.00014,2]
[424271925,1780722643000,-151.0,0.00013997,2]
[424271930,1780722643000,-500.0,0.00014,2]
[424271926,1780722643000,-500.0,0.00014,2]
[424271933,1780722643000,-500.0,0.00014,2]
[424271904,1780722643000,-2000.0,0.00013699,7]
[424271920,1780722643000,-15000.0,0.00013935,2]
[424271906,1780722643000,-500.0,0.00013699,2]
[424271886,1780722643000,-500.0,0.00013698,2]
[424271907,1780722643000,-537.0,0.00013699,2]
[424271890,1780722643000,-500.0,0.00013698,2]
[424271889,1780722643000,-500.0,0.00013698,2]
[424271882,1780722643000,-500.0,0.00013698,2]
[424271883,1780722643000,-500.0,0.00013698,2]
[424271884,1780722643000,-500.0,0.00013698,2]
[424271881,1780722643000,-500.0,0.00013698,2]
[424271888,1780722643000,-500.0,0.00013698,2]
[424271885,1780722643000,-500.0,0.00013698,2]
[424271887,1780722643000,-500.0,0.00013698,2]
[424271891,1780722643000,-500.0,0.00013698,2]
[424271903,1780722643000,-155.0,0.00013699,2]
[424271893,1780722643000,-500.0,0.00013698,2]
[424271892,1780722643000,-500.0,0.00013698,2]
[424271897,1780722643000,-166.66,0.00013699,2]
[424271895,1780722643000,-219.47590719,0.00013698,2]
[424271898,1780722643000,-152.254152,0.00013699,2]
[424271894,1780722643000,-500.0,0.00013698,2]
[424271900,1780722643000,-154.913139,0.00013699,2]
[424271899,1780722643000,-721.84,0.00013699,2]
[424271896,1780722643000,-200.0,0.00013699,2]
[424271901,1780722643000,-151.0,0.00013699,2]
[424271905,1780722643000,-9999.99,0.00013699,2]
[424271902,1780722643000,-159.95263934,0.00013699,2]
[424271928,1780722643000,-500.0,0.00014,2]
[424271931,1780722643000,-500.0,0.00014,2]
[424271935,1780722643000,-500.0,0.00014,2]
[424271961,1780722643000,-500.0,0.00014,2]
[424271963,1780722643000,-503.82,0.00014,2]
[424271960,1780722643000,-500.0,0.00014,2]
[424271964,1780722643000,-500.0,0.00014,2]
[424271967,1780722643000,-500.0,0.00014,2]
[424271966,1780722643000,-500.0,0.00014,2]
[424271965,1780722643000,-500.0,0.00014,2]
[424271968,1780722643000,-500.0,0.00014,2]
[424271970,1780722643000,-500.0,0.00014,2]
[424271969,1780722643000,-500.0,0.00014,2]
[424271972,1780722643000,-500.0,0.00014,2]
[424271978,1780722643000,-500.0,0.00014,2]
[424271971,1780722643000,-500.0,0.00014,2]
[424271929,1780722643000,-500.0,0.00014,2]
[424271979,1780722643000,-500.0,0.00014,2]
[424271973,1780722643000,-500.0,0.00014,2]
[424271976,1780722643000,-500.0,0.00014,2]
[424271974,1780722643000,-500.0,0.00014,2]
[424271977,1780722643000,-500.0,0.00014,2]
[424271981,1780722643000,-500.0,0.00014,2]
[424271980,1780722643000,-500.0,0.00014,2]
[424271962,1780722643000,-500.0,0.00014,2]
[424271959,1780722643000,-500.0,0.00014,2]
[424271975,1780722643000,-500.0,0.00014,2]
[424271951,1780722643000,-500.0,0.00014,2]
[424271955,1780722643000,-500.0,0.00014,2]
[424271945,1780722643000,-500.0,0.00014,2]
[424271934,1780722643000,-500.0,0.00014,2]
[424271937,1780722643000,-500.0,0.00014,2]
[424271936,1780722643000,-500.0,0.00014,2]
[424271946,1780722643000,-500.0,0.00014,2]
[424271939,1780722643000,-500.0,0.00014,2]
[424271938,1780722643000,-500.0,0.00014,2]
[424271941,1780722643000,-500.0,0.00014,2]
[424271940,1780722643000,-500.0,0.00014,2]
[424271944,1780722643000,-500.0,0.00014,2]
[424271957,1780722643000,-500.0,0.00014,2]
[424271943,1780722643000,-500.0,0.00014,2]
[424271947,1780722643000,-500.0,0.00014,2]
[424271956,1780722643000,-500.0,0.00014,2]
[424271948,1780722643000,-500.0,0.00014,2]
[424271949,1780722643000,-500.0,0.00014,2]
[424271950,1780722643000,-500.0,0.00014,2]
[424271954,1780722643000,-500.0,0.00014,2]
[424271953,1780722643000,-500.0,0.00014,2]
[424271952,1780722643000,-500.0,0.00014,2]
[424271942,1780722643000,-500.0,0.00014,2]
[424271958,1780722643000,-500.0,0.00014,2]
[424272063,1780722644000,-500.0,0.00014,2]
[424272069,1780722644000,-10000.0,0.00014059,2]
[424272066,1780722644000,-2000.0,0.00014,2]
[424272068,1780722644000,-2000.0,0.00014,2]
[424272065,1780722644000,-3211.0,0.00014,2]
[424272064,1780722644000,-250.0,0.00014,2]
[424272067,1780722644000,-3725.0,0.00014,2]
[424272070,1780722644000,-10000.0,0.00014067,2]
[424272072,1780722644000,-7679.22147804,0.00014123,2]
[424272062,1780722644000,-412.17,0.00014,2]
[424272061,1780722644000,-500.0,0.00014,2]
[424272059,1780722644000,-500.0,0.00014,2]
[424272071,1780722644000,-166.66,0.0001411,2]
[424272073,1780722644000,-10000.0,0.00014216,2]
[424272086,1780722644000,-507.87785219,0.00014816,2]
[424272074,1780722644000,-166.66,0.00014247,2]
[424272076,1780722644000,-1068.11,0.00014328,2]
[424272084,1780722644000,-18685.63038302,0.000147,2]
[424272087,1780722644000,-151.0,0.00014838,2]
[424272085,1780722644000,-9244.12969139,0.00014702,2]
[424272088,1780722644000,-114420.48621627,0.00014841,2]
[424272077,1780722644000,-1555.5,0.00014328,2]
[424272078,1780722644000,-10000.0,0.00014368,2]
[424272080,1780722644000,-4023.77263616,0.00014563,2]
[424272082,1780722644000,-10000.0,0.00014629,2]
[424272083,1780722644000,-10000.0,0.00014672,2]
[424272081,1780722644000,-1008.0,0.000146,5]
[424272060,1780722644000,-500.0,0.00014,2]
[424272075,1780722644000,-10000.0,0.00014327,2]
[424272079,1780722644000,-166.66,0.00014384,2]
[424272056,1780722644000,-500.0,0.00014,2]
[424272054,1780722644000,-500.0,0.00014,2]
[424271999,1780722644000,-500.0,0.00014,2]
[424272001,1780722644000,-500.0,0.00014,2]
[424272000,1780722644000,-500.0,0.00014,2]
[424272008,1780722644000,-500.0,0.00014,2]
[424272015,1780722644000,-500.0,0.00014,2]
[424272005,1780722644000,-500.0,0.00014,2]
[424272013,1780722644000,-500.0,0.00014,2]
[424272017,1780722644000,-500.0,0.00014,2]
[424272007,1780722644000,-500.0,0.00014,2]
[424272010,1780722644000,-500.0,0.00014,2]
[424272012,1780722644000,-500.0,0.00014,2]
[424272014,1780722644000,-500.0,0.00014,2]
[424272006,1780722644000,-500.0,0.00014,2]
[424272016,1780722644000,-500.0,0.00014,2]
[424272009,1780722644000,-500.0,0.00014,2]
[424271997,1780722644000,-500.0,0.00014,2]
[424272011,1780722644000,-500.0,0.00014,2]
[424271998,1780722644000,-500.0,0.00014,2]
[424271994,1780722644000,-500.0,0.00014,2]
[424271991,1780722644000,-500.0,0.00014,2]
[424271992,1780722644000,-500.0,0.00014,2]
[424271982,1780722644000,-500.0,0.00014,2]
[424271987,1780722644000,-500.0,0.00014,2]
[424271985,1780722644000,-500.0,0.00014,2]
[424271984,1780722644000,-500.0,0.00014,2]
[424271983,1780722644000,-500.0,0.00014,2]
[424271986,1780722644000,-500.0,0.00014,2]
[424271990,1780722644000,-500.0,0.00014,2]
[424271989,1780722644000,-500.0,0.00014,2]
[424271988,1780722644000,-500.0,0.00014,2]
[424271993,1780722644000,-500.0,0.00014,2]
[424271995,1780722644000,-500.0,0.00014,2]
[424271996,1780722644000,-500.0,0.00014,2]
[424272002,1780722644000,-500.0,0.00014,2]
[424272004,1780722644000,-500.0,0.00014,2]
[424272018,1780722644000,-500.0,0.00014,2]
[424272003,1780722644000,-500.0,0.00014,2]
[424272020,1780722644000,-500.0,0.00014,2]
[424272041,1780722644000,-500.0,0.00014,2]
[424272043,1780722644000,-500.0,0.00014,2]
[424272042,1780722644000,-500.0,0.00014,2]
[424272045,1780722644000,-500.0,0.00014,2]
[424272044,1780722644000,-500.0,0.00014,2]
[424272047,1780722644000,-500.0,0.00014,2]
[424272049,1780722644000,-500.0,0.00014,2]
[424272037,1780722644000,-500.0,0.00014,2]
[424272050,1780722644000,-500.0,0.00014,2]
[424272046,1780722644000,-500.0,0.00014,2]
[424272051,1780722644000,-500.0,0.00014,2]
[424272053,1780722644000,-500.0,0.00014,2]
[424272052,1780722644000,-500.0,0.00014,2]
[424272055,1780722644000,-500.0,0.00014,2]
[424272058,1780722644000,-500.0,0.00014,2]
[424272021,1780722644000,-500.0,0.00014,2]
[424272048,1780722644000,-500.0,0.00014,2]
[424272036,1780722644000,-500.0,0.00014,2]
[424272057,1780722644000,-500.0,0.00014,2]
[424272035,1780722644000,-500.0,0.00014,2]
[424272033,1780722644000,-500.0,0.00014,2]
[424272025,1780722644000,-500.0,0.00014,2]
[424272023,1780722644000,-500.0,0.00014,2]
[424272026,1780722644000,-500.0,0.00014,2]
[424272024,1780722644000,-500.0,0.00014,2]
[424272027,1780722644000,-500.0,0.00014,2]
[424272028,1780722644000,-500.0,0.00014,2]
[424272019,1780722644000,-500.0,0.00014,2]
[424272022,1780722644000,-500.0,0.00014,2]
[424272029,1780722644000,-500.0,0.00014,2]
[424272040,1780722644000,-500.0,0.00014,2]
[424272032,1780722644000,-500.0,0.00014,2]
[424272031,1780722644000,-500.0,0.00014,2]
[424272034,1780722644000,-500.0,0.00014,2]
[424272030,1780722644000,-167.43,0.00014,2]
[424272038,1780722644000,-500.0,0.00014,2]
[424272039,1780722644000,-500.0,0.00014,2]
[424272089,1780722645000,-6547.69390979,0.00014841,2]
[424272091,1780722645000,-340.46658888,0.00014841,2]
[424272092,1780722645000,-1809.28945156,0.00014841,2]
[424272090,1780722645000,-3498.56135419,0.00014841,2]
[424272097,1780722646000,-27141.20854711,0.00014841,2]
[424272094,1780722646000,-453.3,0.00014841,2]
[424272096,1780722646000,-293.91679082,0.00013698,2]
[424272099,1780722646000,-34284.1558253,0.00014841,2]
[424272101,1780722646000,-153.344063,0.00014841,2]
[424272095,1780722646000,-8321.94464128,0.000109,2]
[424272100,1780722646000,-181.107723,0.00014841,2]
[424272098,1780722646000,-50737.4093046,0.00014841,2]
[424272104,1780722646000,-165.12182,0.00014841,2]
[424272102,1780722646000,-153.398234,0.00014841,2]
[424272107,1780722646000,-8341.86759205,0.0001485,2]
[424272108,1780722646000,-151.0,0.0001485,2]
[424272109,1780722646000,-1107.63007,0.00014876,2]
[424272105,1780722646000,-165.12182,0.00014841,2]
[424272103,1780722646000,-165.12182,0.00014841,2]
[424272106,1780722646000,-165.12182,0.00014841,2]
[424272120,1780722647000,-6790.98297203,0.00014969,2]
[424272113,1780722647000,-400.08813059,0.000149,3]
[424272114,1780722647000,-1644.63690168,0.000149,2]
[424272115,1780722647000,-176.00672803,0.000149,2]
[424272112,1780722647000,-11702.71165991,0.000149,3]
[424272111,1780722647000,-10441.01536247,0.000149,3]
[424272118,1780722647000,-182.13614605,0.00014925,2]
[424272121,1780722647000,-157.15619754,0.00014986,2]
[424272116,1780722647000,-177.53749417,0.00014908,2]
[424272117,1780722647000,-411.0,0.00014922,2]
[424272119,1780722647000,-6790.98297203,0.00014968,2]
[424272122,1780722647000,-171.7075852,0.00014986,2]
[424272123,1780722647000,-186.4017571,0.00014986,2]
[424272124,1780722647000,-6085.50913054,0.00014988,2]
[424272126,1780722647000,-252.93403962,0.00014988,2]
[424272132,1780722647000,-13076.27988408,0.00015,2]
[424272131,1780722647000,-1000.0,0.00014999,2]
[424272127,1780722647000,-255.27340314,0.0001499,2]
[424272130,1780722647000,-1000.0,0.00014999,2]
[424272129,1780722647000,-250.0,0.00014999,2]
[424272134,1780722647000,-1750.77431093,0.00015,2]
[424272137,1780722647000,-601.71500188,0.00015,2]
[424272136,1780722647000,-292.54503302,0.00015,2]
[424272135,1780722647000,-53619.65519144,0.00015,2]
[424272133,1780722647000,-589.00345097,0.00015,2]
[424272110,1780722647000,-1613.0535,0.00014876,2]
[424272125,1780722647000,-452.53980187,0.00014988,2]
[424272128,1780722647000,-151.0,0.00014997,2]
[424272138,1780722738000,500.0,7.958e-05,2]
[424272142,1780723066000,2000.0,0.00030137,120]
[424272143,1780723119000,222.86,6.391e-05,2]